bitfinex/quotes_BTCUSD_20260215
["timestamp","ask_amount","ask_price","bid_price","bid_amount"]
[1771164255026,0.44162859,69062.0,69050.0,0.00020929]
[1771164255229,0.53799099,69062.0,69050.0,0.00020929]
[1771164255671,0.46559228,69062.0,69050.0,0.00020929]
[1771164256137,4e-05,69068.0,69051.0,0.3443829]
[1771164256382,4e-05,69068.0,69058.0,0.02465766]
[1771164256617,4e-05,69068.0,69059.0,0.07240185]
[1771164256841,4e-05,69068.0,69050.0,0.00020929]
[1771164256842,4e-05,69068.0,69060.0,0.02465766]
[1771164257521,4e-05,69068.0,69062.0,0.02465766]
[1771164258434,0.0004,69077.0,69058.0,4e-05]
[1771164258623,0.44162859,69069.0,69058.0,4e-05]
[1771164258964,8e-05,69070.0,69050.0,0.00020929]
[1771164258965,0.02396369,69066.0,69050.0,0.00020929]
[1771164259164,0.44162859,69058.0,69050.0,0.00020929]
[1771164259367,4e-05,69068.0,69050.0,0.00020929]
[1771164259368,0.44162859,69067.0,69050.0,0.00020929]
[1771164259576,0.44162859,69067.0,69051.0,0.02465766]
[1771164259780,0.44162859,69067.0,69051.0,0.09706775]
[1771164259980,0.44162859,69067.0,69051.0,0.02465766]
[1771164260570,0.44162859,69067.0,69046.0,0.28965969]
[1771164260571,0.0724327,69068.0,69034.0,0.0004704]
[1771164260572,0.28961851,69057.0,69034.0,0.0004704]
[1771164260766,0.44162859,69044.0,69034.0,0.0004704]
[1771164260964,0.07242247,69040.0,69034.0,0.0004704]
[1771164261170,0.44162859,69041.0,69034.0,0.0004704]
[1771164261374,0.51404963,69041.0,69034.0,0.0004704]
[1771164261617,0.07241653,69045.0,69034.0,0.0004704]
[1771164261822,0.44162859,69037.0,69031.0,0.0002]
[1771164261943,0.51405364,69037.0,69031.0,0.00032944]
[1771164262146,0.44162859,69037.0,69031.0,0.00032944]
[1771164262399,0.07241818,69044.0,69031.0,0.00032944]
[1771164262592,4e-05,69046.0,69031.0,0.43388746]
[1771164262937,0.07242374,69039.0,69031.0,0.00032944]
[1771164263141,0.07242564,69037.0,69031.0,0.00032944]
[1771164263314,0.44142859,69038.0,69031.0,0.00032944]
[1771164263751,4e-05,69046.0,69031.0,0.00032944]
[1771164263752,0.44162859,69045.0,69031.0,0.00032944]
[1771164264216,4e-05,69046.0,69031.0,0.00032944]
[1771164264385,4e-05,69046.0,69031.0,0.07276063]
[1771164264709,4e-05,69046.0,69032.0,0.43355802]
[1771164264867,4e-05,69046.0,69031.0,0.00032944]
[1771164264868,8e-05,69050.0,69033.0,0.02465766]
[1771164265072,8e-05,69050.0,69031.0,0.00032944]
[1771164265073,0.07248281,69060.0,69041.0,0.45821568]
[1771164265290,0.07240325,69058.0,69041.0,0.45821568]
[1771164265486,0.07248185,69060.0,69041.0,0.45821568]
[1771164265667,0.44162859,69052.0,69040.0,8e-05]
[1771164265859,0.02396369,69058.0,69040.0,8e-05]
[1771164265860,0.07241097,69051.0,69040.0,8e-05]
[1771164266073,0.44162859,69050.0,69040.0,8e-05]
[1771164267559,0.51404002,69050.0,69040.0,8e-05]
[1771164267969,0.07241235,69049.0,69040.0,8e-05]
[1771164268192,0.51404024,69050.0,69040.0,8e-05]
[1771164268402,8e-05,69049.0,69040.0,8e-05]
[1771164269671,0.44170859,69049.0,69040.0,8e-05]
[1771164270191,0.44162859,69048.0,69040.0,8e-05]
[1771164270401,0.44162859,69044.0,69040.0,8e-05]
[1771164271272,0.07241748,69045.0,69031.0,0.00032944]
[1771164271509,8e-05,69043.0,69031.0,0.00032944]
[1771164272195,0.07241779,69044.0,69031.0,0.00032944]
[1771164272416,8e-05,69043.0,69031.0,0.00032944]
[1771164273051,4e-05,69048.0,69034.0,0.02465766]
[1771164273224,8e-05,69045.0,69034.0,0.02465766]
[1771164273780,8e-05,69045.0,69031.0,0.00032944]
[1771164273781,0.44170859,69045.0,69031.0,0.00032944]
[1771164274016,0.51412527,69045.0,69031.0,0.00032944]
[1771164274686,0.07241986,69042.0,69031.0,0.00032944]
[1771164274912,0.51404946,69041.0,69031.0,0.00032944]
[1771164275106,0.51412946,69041.0,69031.0,0.00032944]
[1771164275507,0.44170859,69041.0,69031.0,0.00032944]
[1771164276544,0.44162859,69041.0,69031.0,0.00032944]
[1771164276745,0.07245745,69046.0,69031.0,0.00032944]
[1771164277057,0.07241729,69045.0,69031.0,0.00032944]
[1771164277266,0.07241772,69044.0,69031.0,0.00032944]
[1771164278160,0.07241772,69044.0,69040.0,4e-05]
[1771164278341,4e-05,69034.0,69031.0,0.00028944]
[1771164279612,4e-05,69046.0,69031.0,0.00028944]
[1771164279908,4e-05,69046.0,69034.0,0.02465766]
[1771164280112,4e-05,69046.0,69037.0,0.02465766]
[1771164281912,0.00012,69046.0,69037.0,0.02465766]
[1771164282777,0.00012,69046.0,69031.0,0.72357101]
[1771164282778,4e-05,69048.0,69041.0,0.02465766]
[1771164283013,8e-05,69046.0,69041.0,0.02465766]
[1771164283205,4e-05,69048.0,69041.0,0.02465766]
[1771164283559,0.0004,69046.0,69041.0,0.02465766]
[1771164283772,4e-05,69048.0,69041.0,0.02465766]
[1771164284972,0.0004,69053.0,69036.0,4e-05]
[1771164285162,0.0004,69057.0,69050.0,0.02409807]
[1771164285362,0.0004,69057.0,69051.0,0.07240973]
[1771164285612,0.0004,69057.0,69051.0,0.0724096]
[1771164285784,0.0004,69057.0,69048.0,0.43228463]
[1771164285785,0.0004,69057.0,69052.0,0.02409807]
[1771164286426,0.0004,69057.0,69052.0,0.43228463]
[1771164286705,0.0004,69067.0,69055.0,0.02409807]
[1771164286939,0.00052936,69064.0,69055.0,0.02409807]
[1771164287453,0.00052936,69064.0,69050.0,8e-05]
[1771164287593,0.00052936,69064.0,69050.0,0.07249117]
[1771164287794,0.40755184,69063.0,69050.0,8e-05]
[1771164288214,0.40755184,69061.0,69050.0,8e-05]
[1771164290710,0.07240153,69060.0,69050.0,8e-05]
[1771164290907,0.40755184,69059.0,69050.0,8e-05]
[1771164292576,0.40755184,69059.0,69044.0,0.09651552]
[1771164292577,0.40755184,69059.0,69044.0,0.07241745]
[1771164292797,0.40755184,69059.0,69045.0,0.02409807]
[1771164293182,0.40755184,69059.0,69058.0,4e-05]
[1771164293385,0.40755184,69059.0,69054.0,4e-05]
[1771164293591,0.40755184,69059.0,69048.0,4e-05]
[1771164293836,0.40755184,69057.0,69048.0,4e-05]
[1771164294044,0.43215144,69057.0,69048.0,4e-05]
[1771164297264,8e-05,69060.0,69048.0,4e-05]
[1771164298385,8e-05,69060.0,69052.0,0.07240857]
[1771164298589,8e-05,69060.0,69053.0,0.02409807]
[1771164298970,0.0004,69061.0,69053.0,0.02409807]
[1771164299792,0.0004,69061.0,69050.0,8e-05]
[1771164300226,0.0004,69061.0,69051.0,0.02409807]
[1771164300581,4e-05,69062.0,69051.0,0.02409807]
[1771164300582,4e-05,69062.0,69052.0,0.02409807]
[1771164300701,4e-05,69062.0,69050.0,0.43236463]
[1771164300896,0.43223144,69070.0,69054.0,4e-05]
[1771164300897,8e-05,69070.0,69054.0,4e-05]
[1771164301105,0.0245996,69088.0,69067.0,0.43228463]
[1771164301342,0.0245996,69088.0,69056.0,4e-05]
[1771164301344,0.0245996,69088.0,69022.0,4e-05]
[1771164301345,0.0014499,69048.0,69022.0,4e-05]
[1771164301544,0.0014499,69048.0,69023.0,0.43271634]
[1771164301545,4e-05,69032.0,69023.0,0.43271634]
[1771164301742,4e-05,69034.0,69023.0,0.43271634]
[1771164302000,4e-05,69034.0,69023.0,0.00043171]
[1771164302452,0.07246827,69034.0,69023.0,0.00043171]
[1771164302669,0.07243103,69032.0,69023.0,0.00043171]
[1771164303559,0.07246827,69034.0,69023.0,0.00043171]
[1771164303993,0.07242943,69033.0,69023.0,0.00043171]
[1771164304674,0.07243027,69032.0,69023.0,0.00043171]
[1771164304886,0.0246396,69046.0,69025.0,0.01634978]
[1771164305104,0.07242046,69042.0,69027.0,0.43228463]
[1771164305302,0.07242072,69042.0,69029.0,0.44863441]
[1771164305852,0.07242377,69039.0,69029.0,0.01634978]
[1771164306055,0.07242377,69039.0,69024.0,0.43228463]
[1771164306056,0.07242377,69039.0,69025.0,0.00119775]
[1771164306254,0.07242377,69039.0,69025.0,0.44983216]
[1771164306484,0.07242377,69039.0,69027.0,0.0002]
[1771164306886,0.07242206,69040.0,69027.0,0.0002]
[1771164307091,0.07242206,69040.0,69027.0,0.43248463]
[1771164307348,0.07242119,69041.0,69027.0,0.44883441]
[1771164308331,4e-05,69030.0,69028.0,0.44863441]
[1771164308534,4e-05,69032.0,69029.0,0.01634978]
[1771164308739,0.07238183,69040.0,69029.0,0.01634978]
[1771164308990,0.07242119,69041.0,69029.0,0.01634978]
[1771164309335,0.07242119,69041.0,69028.0,0.0002576]
[1771164309746,0.0245996,69042.0,69028.0,0.0002576]
[1771164310004,0.43215144,69042.0,69028.0,0.0002576]
[1771164310410,0.02783989,69038.0,69028.0,0.0002576]
[1771164310616,0.72183064,69042.0,69028.0,0.0002576]
[1771164311195,0.07242478,69038.0,69028.0,0.0002576]
[1771164311594,0.07242478,69038.0,69028.0,0.01660738]
[1771164313003,0.2896792,69042.0,69028.0,0.01660738]
[1771164313004,0.07242768,69035.0,69028.0,0.0002576]
[1771164313215,0.09702502,69037.0,69028.0,0.0002576]
[1771164314125,0.07242542,69037.0,69029.0,0.01634978]
[1771164314339,0.09723126,69046.0,69030.0,0.01634978]
[1771164314552,4e-05,69046.0,69030.0,0.01620136]
[1771164314755,4e-05,69046.0,69036.0,0.01620136]
[1771164314963,4e-05,69046.0,69037.0,0.01620136]
[1771164315370,4e-05,69046.0,69030.0,0.28998444]
[1771164315585,4e-05,69052.0,69043.0,0.0724177]
[1771164315784,4e-05,69054.0,69044.0,0.01620136]
[1771164316375,4e-05,69054.0,69040.0,4e-05]
[1771164317177,4e-05,69054.0,69040.0,0.01624136]
[1771164318511,4e-05,69050.0,69039.0,0.47750132]
[1771164319361,4e-05,69050.0,69040.0,0.07242177]
[1771164319743,4e-05,69054.0,69040.0,0.07246177]
[1771164319944,4e-05,69054.0,69042.0,0.07241884]
[1771164320681,4e-05,69054.0,69041.0,0.07242052]
[1771164320879,4e-05,69054.0,69040.0,4e-05]
[1771164321084,4e-05,69054.0,69040.0,0.07246157]
[1771164321285,0.00044,69054.0,69040.0,0.07246157]
[1771164323320,0.00044,69054.0,69050.0,4e-05]
[1771164323660,0.00044,69054.0,69048.0,4e-05]
[1771164324520,8e-05,69060.0,69048.0,4e-05]
[1771164324738,0.00020934,69060.0,69048.0,0.70300837]
[1771164324974,4e-05,69064.0,69053.0,0.41331739]
[1771164325116,4e-05,69070.0,69059.0,0.07240105]
[1771164325454,4e-05,69070.0,69056.0,0.41335739]
[1771164325455,4e-05,69070.0,69061.0,0.07239924]
[1771164325772,4e-05,69070.0,69056.0,0.41335739]
[1771164325898,4e-05,69070.0,69056.0,4e-05]
[1771164326095,4e-05,69070.0,69056.0,0.07244481]
[1771164326501,4e-05,69070.0,69064.0,0.07239566]
[1771164326904,4e-05,69070.0,69065.0,0.07239552]
[1771164327579,4e-05,69070.0,69065.0,0.07239457]
[1771164328196,4e-05,69070.0,69056.0,0.28965582]
[1771164328393,4e-05,69070.0,69064.0,0.07239557]
[1771164328604,4e-05,69070.0,69056.0,4e-05]
[1771164328751,4e-05,69070.0,69067.0,0.07239347]
[1771164329627,1e-08,69068.0,69067.0,0.07239347]
[1771164329829,1e-08,69068.0,69067.0,0.48571086]
[1771164330236,4e-05,69070.0,69069.0,0.48570876]
[1771164331585,1e-08,69075.0,69074.0,0.07238613]
[1771164333252,1e-08,69077.0,69076.0,0.07238404]
[1771164333681,1e-08,69077.0,69076.0,0.48570143]
[1771164333927,0.0004,69081.0,69076.0,0.48570143]
[1771164333928,1e-08,69081.0,69079.0,0.07238089]
[1771164334183,0.0001294,69081.0,69080.0,0.07237984]
[1771164334810,0.0002464,69093.0,69088.0,0.04835649]
[1771164335211,0.0002464,69093.0,69081.0,0.41331739]
[1771164335469,0.0002464,69093.0,69082.0,0.28950937]
[1771164335680,0.0002464,69093.0,69086.0,0.07237306]
[1771164336104,0.0002464,69093.0,69087.0,0.07237223]
[1771164336308,0.0004,69089.0,69087.0,0.07237223]
[1771164336523,0.0004,69089.0,69083.0,0.28950551]
[1771164336524,1e-08,69093.0,69092.0,0.07236727]
[1771164336938,0.0004,69102.0,69101.0,0.07235785]
[1771164336939,1e-08,69102.0,69101.0,0.07235785]
[1771164337139,0.0002464,69107.0,69094.0,0.41331739]
[1771164337339,0.00037568,69107.0,69094.0,0.41331739]
[1771164337691,0.00037568,69107.0,69102.0,0.07235624]
[1771164337914,0.00037568,69107.0,69094.0,0.41331739]
[1771164338123,0.00037568,69107.0,69101.0,0.07235754]
[1771164338324,0.00037568,69107.0,69100.0,0.0723581]
[1771164338529,0.62683826,69119.0,69084.0,0.09276]
[1771164338530,4e-05,69102.0,69084.0,0.09276]
[1771164338736,8e-05,69100.0,69092.0,0.001]
[1771164338939,0.00051085,69100.0,69092.0,0.001]
[1771164339182,1e-08,69100.0,69099.0,0.07235994]
[1771164339378,1e-08,69100.0,69096.0,0.07236278]
[1771164339582,1e-08,69100.0,69098.0,0.07236066]
[1771164339801,1e-08,69100.0,69099.0,0.07235994]
[1771164340407,1e-08,69100.0,69098.0,0.07236073]
[1771164341207,1e-08,69100.0,69091.0,0.07236745]
[1771164341413,0.02500001,69100.0,69092.0,0.07236657]
[1771164341627,0.42747316,69099.0,69084.0,4e-05]
[1771164341837,0.3550189,69095.0,69086.0,0.34688]
[1771164342043,4e-05,69098.0,69086.0,0.34688]
[1771164342044,0.02477566,69096.0,69086.0,0.34688]
[1771164342244,4e-05,69098.0,69086.0,0.41925329]
[1771164342444,4e-05,69098.0,69086.0,0.63637265]
[1771164342621,4e-05,69098.0,69086.0,0.41925251]
[1771164342845,0.00048001,69100.0,69097.0,0.07236204]
[1771164343023,1e-08,69100.0,69099.0,0.07235994]
[1771164343234,1e-08,69100.0,69096.0,0.28944905]
[1771164343450,0.02287592,69097.0,69088.0,4e-05]
[1771164343653,0.44525114,69096.0,69088.0,4e-05]
[1771164343853,0.02287592,69095.0,69088.0,4e-05]
[1771164344056,0.02287592,69095.0,69078.0,0.11526983]
[1771164344057,0.42237522,69089.0,69078.0,0.0724211]
[1771164344268,4e-05,69092.0,69081.0,0.02250983]
[1771164344469,0.42241522,69092.0,69080.0,8e-05]
[1771164344676,0.44525114,69090.0,69080.0,8e-05]
[1771164344876,0.02287592,69087.0,69080.0,8e-05]
[1771164345082,0.42237522,69086.0,69080.0,8e-05]
[1771164345504,0.42237522,69086.0,69074.0,4e-05]
[1771164345505,0.02287592,69085.0,69074.0,4e-05]
[1771164345689,4e-05,69086.0,69080.0,0.07237883]
[1771164345865,8e-05,69090.0,69074.0,4e-05]
[1771164346072,4e-05,69094.0,69083.0,0.02250983]
[1771164346481,4e-05,69094.0,69086.0,0.09488239]
[1771164346714,4e-05,69094.0,69087.0,0.07237237]
[1771164346885,4e-05,69094.0,69088.0,0.07237089]
[1771164347645,4e-05,69094.0,69091.0,0.07236763]
[1771164347843,4e-05,69094.0,69087.0,0.07237251]
[1771164348051,4e-05,69094.0,69089.0,0.07237009]
[1771164348257,4e-05,69094.0,69090.0,0.07236914]
[1771164348407,0.02287592,69101.0,69092.0,0.07236636]
[1771164348617,0.44565114,69107.0,69096.0,0.07236245]
[1771164348816,0.44565114,69107.0,69094.0,0.07236428]
[1771164349022,0.0004,69114.0,69088.0,4e-05]
[1771164349024,0.11339276,69133.0,69088.0,4e-05]
[1771164349235,0.0002464,69148.0,69088.0,4e-05]
[1771164349236,0.42237522,69135.0,69113.0,0.02250983]
[1771164349410,0.5310528,69149.0,69110.0,0.41281339]
[1771164349411,0.5310528,69149.0,69121.0,0.02250983]
[1771164349412,0.0003075,69141.0,69121.0,0.02250983]
[1771164349620,0.0003075,69141.0,69120.0,4e-05]
[1771164349621,0.0002864,69139.0,69122.0,0.41277339]
[1771164349982,0.02316232,69139.0,69122.0,0.0723354]
[1771164350182,0.02316232,69139.0,69124.0,0.07233336]
[1771164350382,0.02287592,69138.0,69120.0,4e-05]
[1771164350564,0.42237522,69137.0,69125.0,0.07233236]
[1771164350982,0.42237522,69137.0,69126.0,0.07233159]
[1771164351189,0.00012928,69139.0,69101.0,0.41277339]
[1771164351190,0.02287592,69136.0,69101.0,0.41277339]
[1771164351411,0.02287592,69136.0,69091.0,0.94454674]
[1771164351412,0.02287592,69126.0,69105.0,0.3468]
[1771164351611,4e-05,69130.0,69089.0,0.6362802]
[1771164351612,0.07237831,69120.0,69089.0,0.6362802]
[1771164351792,0.42237522,69117.0,69098.0,0.28944217]
[1771164351944,0.44525114,69115.0,69089.0,0.78208322]
[1771164352145,0.0002864,69119.0,69101.0,0.02250983]
[1771164352370,0.0002864,69119.0,69090.0,0.22912]
[1771164352371,0.42237522,69113.0,69091.0,0.28947235]
[1771164352579,0.42237522,69109.0,69096.0,0.07236304]
[1771164352784,0.42237522,69109.0,69092.0,0.07240641]
[1771164353022,0.02291592,69110.0,69092.0,0.00047085]
[1771164353202,0.42254162,69109.0,69095.0,0.07236332]
[1771164353435,0.42226162,69109.0,69095.0,0.07236332]
[1771164354125,0.82041495,69118.0,69092.0,0.00147085]
[1771164354126,0.02287592,69121.0,69100.0,4e-05]
[1771164354430,0.42237522,69134.0,69105.0,0.41277339]
[1771164354587,0.42237522,69134.0,69115.0,0.2893705]
[1771164354791,0.42237522,69134.0,69117.0,0.07234024]
[1771164355133,0.09268,69137.0,69114.0,0.43528322]
[1771164355134,0.42241522,69130.0,69114.0,0.02250983]
[1771164355687,0.42254448,69130.0,69118.0,0.07233928]
[1771164355892,0.00016926,69130.0,69114.0,0.31188261]
[1771164356098,0.00016926,69130.0,69114.0,0.09485333]
[1771164356299,0.00016926,69130.0,69119.0,0.07233854]
[1771164356526,0.00016926,69130.0,69123.0,0.07233434]
[1771164356931,0.0004,69127.0,69124.0,0.07233367]
[1771164357131,0.0004,69127.0,69117.0,0.70213428]
[1771164357332,0.0004,69127.0,69122.0,0.07233507]
[1771164357538,0.0004,69127.0,69123.0,0.07233445]
[1771164357706,0.0004,69127.0,69125.0,0.07233267]
[1771164357907,0.00016926,69130.0,69118.0,0.02250983]
[1771164358126,0.0004,69134.0,69106.0,0.43411312]
[1771164358127,0.0004,69134.0,69123.0,0.02250983]
[1771164358328,0.0004,69134.0,69129.0,0.09483814]
[1771164358524,0.0004,69134.0,69133.0,0.07232436]
[1771164358722,0.0002275,69141.0,69130.0,0.02254983]
[1771164359010,0.0002275,69141.0,69130.0,0.31185768]
[1771164359192,0.0002275,69141.0,69136.0,0.07232118]
[1771164359415,0.42237522,69140.0,69130.0,4e-05]
[1771164360448,0.42237522,69140.0,69123.0,0.00012926]
[1771164360449,0.07231808,69139.0,69123.0,0.00012926]
[1771164360646,0.42237522,69139.0,69125.0,0.07233196]
[1771164360878,0.42237522,69139.0,69125.0,0.07233247]
[1771164361211,0.42237522,69139.0,69125.0,0.07233273]
[1771164361412,4e-05,69140.0,69125.0,0.07233273]
[1771164361607,0.42237522,69139.0,69124.0,0.34672]
[1771164361856,0.49469404,69139.0,69124.0,0.34672]
[1771164362075,0.07232464,69133.0,69123.0,0.00012926]
[1771164362281,0.42237522,69134.0,69123.0,0.00012926]
[1771164362874,0.42237522,69134.0,69125.0,0.07233249]
[1771164363108,0.42237522,69134.0,69100.0,4e-05]
[1771164363318,0.02287592,69126.0,69105.0,0.07235277]
[1771164363524,0.42237522,69125.0,69105.0,0.28941445]
[1771164363732,0.42237522,69125.0,69107.0,0.07235074]
[1771164363917,0.07233412,69124.0,69107.0,0.07235074]
[1771164364131,0.42237522,69123.0,69107.0,0.07235074]
[1771164364410,0.42237522,69123.0,69108.0,0.07235018]
[1771164364614,0.42237522,69123.0,69107.0,0.07235134]
[1771164365140,0.02287592,69123.0,69100.0,0.0002]
[1771164365296,0.42237522,69118.0,69100.0,0.0002]
[1771164365618,0.42237522,69116.0,69100.0,0.07255819]
[1771164365829,0.02287592,69122.0,69100.0,0.0002]
[1771164365995,4e-05,69130.0,69100.0,0.0002]
[1771164365996,0.42237522,69113.0,69100.0,0.0002]
[1771164366376,0.07234491,69114.0,69100.0,0.0002]
[1771164366578,0.07234355,69115.0,69100.0,0.0002]
[1771164366779,0.49471877,69115.0,69100.0,0.0002]
[1771164367010,0.42237522,69115.0,69100.0,0.0002]
[1771164367200,0.42237522,69115.0,69100.0,0.07268786]
[1771164368279,4e-05,69126.0,69114.0,4e-05]
[1771164368634,0.42241522,69126.0,69114.0,4e-05]
[1771164369500,4e-05,69126.0,69114.0,4e-05]
[1771164369976,4e-05,69126.0,69119.0,0.07233858]
[1771164370295,0.11551592,69137.0,69114.0,0.02254983]
[1771164370503,0.07235731,69140.0,69123.0,0.07233391]
[1771164370825,0.07271912,69139.0,69123.0,0.07233476]
[1771164371398,0.0004,69139.0,69124.0,0.07233377]
[1771164371596,0.00052921,69139.0,69124.0,0.07233377]
[1771164372163,0.00052921,69139.0,69122.0,0.02250983]
[1771164372384,0.00052921,69139.0,69121.0,0.41277339]
[1771164372385,0.00052921,69139.0,69131.0,0.072326]
[1771164372588,0.0004,69137.0,69129.0,0.09483765]
[1771164372787,0.0004,69137.0,69130.0,0.07232693]
[1771164373543,0.0004,69137.0,69129.0,0.09483765]
[1771164373544,0.0004,69137.0,69129.0,0.02250983]
[1771164373774,0.0004,69137.0,69127.0,0.41277339]
[1771164373980,0.0004,69137.0,69131.0,0.07232544]
[1771164374188,0.0004,69137.0,69129.0,0.02286493]
[1771164374397,0.0004,69137.0,69131.0,0.07232574]
[1771164374597,0.0004,69137.0,69130.0,0.0723255]
[1771164374801,0.00052921,69139.0,69134.0,0.07232321]
[1771164374931,0.00052921,69139.0,69119.0,0.71759123]
[1771164375129,0.00052921,69139.0,69131.0,0.07232576]
[1771164375359,0.00052921,69139.0,69128.0,0.07232885]
[1771164375570,0.00052921,69139.0,69126.0,0.07233071]
[1771164376144,0.00052921,69139.0,69125.0,0.07233064]
[1771164376499,0.00052921,69139.0,69127.0,0.07232962]
[1771164376698,0.00052921,69139.0,69121.0,0.34664]
[1771164376909,0.00052921,69139.0,69133.0,0.07232356]
[1771164377734,0.00052921,69139.0,69134.0,0.07232313]
[1771164377934,0.00052921,69139.0,69135.0,0.02286493]
[1771164378889,0.00052921,69139.0,69135.0,0.01431715]
[1771164379108,0.00052921,69139.0,69135.0,0.086639]
[1771164379543,0.0004,69146.0,69130.0,0.42823876]
[1771164379544,0.0004,69153.0,69152.0,0.07230448]
[1771164379712,0.02420289,69166.0,69142.0,0.02286493]
[1771164379915,0.42752835,69159.0,69142.0,0.09530897]
[1771164380114,4e-05,69160.0,69142.0,0.09530871]
[1771164380283,4e-05,69160.0,69142.0,0.07244378]
[1771164380284,0.42780745,69156.0,69142.0,0.07244378]
[1771164380487,0.0002791,69156.0,69143.0,0.42823876]
[1771164380694,0.0002791,69156.0,69142.0,0.00012921]
[1771164380923,0.0002791,69156.0,69145.0,0.07231107]
[1771164381124,0.0002791,69156.0,69147.0,0.07230969]
[1771164381329,0.0002791,69156.0,69146.0,0.07230981]
[1771164381552,0.0002791,69156.0,69147.0,0.07230952]
[1771164382414,0.0002791,69156.0,69142.0,0.2893869]
[1771164382415,0.0002791,69156.0,69153.0,0.07230283]
[1771164382634,0.0002791,69156.0,69145.0,0.02286493]
[1771164382845,0.0002791,69156.0,69142.0,0.00012921]
[1771164383053,0.0002791,69156.0,69149.0,0.07230687]
[1771164383256,0.0002791,69156.0,69152.0,4e-05]
[1771164383461,0.42780745,69156.0,69152.0,4e-05]
[1771164384130,0.42780745,69156.0,69150.0,4e-05]
[1771164384131,0.42752835,69154.0,69139.0,0.3466]
[1771164384332,0.30693385,69148.0,69130.0,4e-05]
[1771164384534,0.07867404,69148.0,69136.0,0.07236056]
[1771164384742,0.42760835,69150.0,69136.0,4e-05]
[1771164384941,8e-05,69150.0,69142.0,0.07231398]
[1771164385185,8e-05,69150.0,69141.0,0.07231575]
[1771164385775,8e-05,69150.0,69140.0,0.07231677]
[1771164387284,8e-05,69150.0,69141.0,0.07231586]
[1771164387487,8e-05,69150.0,69142.0,0.07231455]
[1771164387893,8e-05,69150.0,69136.0,4e-05]
[1771164387894,8e-05,69150.0,69112.0,4e-05]
[1771164387895,4e-05,69140.0,69112.0,4e-05]
[1771164388059,0.42752835,69122.0,69112.0,4e-05]
[1771164388288,0.07233836,69120.0,69110.0,4e-05]
[1771164388499,0.07233836,69120.0,69098.0,4e-05]
[1771164388500,0.42752835,69108.0,69098.0,4e-05]
[1771164388707,0.42752835,69108.0,69086.0,0.02334403]
[1771164388708,0.42752835,69096.0,69086.0,0.0004791]
[1771164389142,0.42752835,69096.0,69086.0,0.00090995]
[1771164389475,0.02420289,69100.0,69086.0,0.00090995]
[1771164389680,0.42752835,69099.0,69086.0,0.00090995]
[1771164389883,0.45173124,69100.0,69086.0,0.00090995]
[1771164390286,0.07236316,69096.0,69086.0,0.00090995]
[1771164390493,0.42752835,69095.0,69086.0,0.00090995]
[1771164391631,4e-05,69130.0,69086.0,0.00090995]
[1771164391632,8e-05,69110.0,69086.0,0.00090995]
[1771164391836,0.07235237,69107.0,69089.0,0.07236958]
[1771164392039,0.49988072,69107.0,69090.0,0.07236861]
[1771164392468,0.02420289,69106.0,69090.0,0.07236861]
[1771164392681,0.42752835,69105.0,69091.0,0.07236829]
[1771164393092,0.42752835,69105.0,69089.0,0.07236958]
[1771164393301,0.42752835,69105.0,69088.0,0.07237144]
[1771164393302,0.42752835,69103.0,69088.0,0.07237144]
[1771164393595,0.42752835,69103.0,69090.0,0.0002]
[1771164394170,0.09655581,69106.0,69090.0,0.0002]
[1771164394171,0.42752835,69100.0,69090.0,0.0002]
[1771164394437,4e-05,69108.0,69096.0,0.0723623]
[1771164394633,0.52408306,69107.0,69090.0,0.0002]
[1771164394839,0.0723568,69102.0,69090.0,0.0002]
[1771164395044,0.42752835,69102.0,69090.0,0.0002]
[1771164395416,0.42752835,69102.0,69096.0,0.07236296]
[1771164395615,0.42752835,69102.0,69095.0,0.07236403]
[1771164395831,0.42752835,69102.0,69090.0,0.0002]
[1771164396001,0.42752835,69102.0,69093.0,0.07236568]
[1771164396204,0.42752835,69102.0,69094.0,0.07236505]
[1771164397169,0.42752835,69102.0,69093.0,0.07236617]
[1771164397377,0.42752835,69102.0,69092.0,0.07236519]
[1771164397581,0.42752835,69102.0,69095.0,0.07236409]
[1771164397779,0.42752835,69102.0,69096.0,0.07236308]
[1771164398122,0.42752835,69102.0,69100.0,4e-05]
[1771164398546,4e-05,69108.0,69100.0,4e-05]
[1771164398773,4e-05,69108.0,69096.0,4e-05]
[1771164399399,4e-05,69102.0,69090.0,0.00024]
[1771164400888,0.07236087,69099.0,69090.0,0.00024]
[1771164401088,4e-05,69102.0,69090.0,0.00024]
[1771164401089,0.07235796,69101.0,69090.0,0.00024]
[1771164401474,0.07239706,69102.0,69090.0,0.00024]
[1771164402160,4e-05,69102.0,69090.0,0.00024]
[1771164402492,0.0723582,69101.0,69090.0,0.00024]
[1771164403333,0.07236552,69094.0,69086.0,0.00094995]
[1771164403533,0.07236459,69095.0,69086.0,0.00094995]
[1771164404421,4e-05,69098.0,69086.0,0.00094995]
[1771164404422,0.07236504,69096.0,69086.0,0.00094995]
[1771164404601,0.07236413,69095.0,69086.0,0.00094995]
[1771164405059,4e-05,69098.0,69086.0,0.00094995]
[1771164405268,4e-05,69098.0,69092.0,0.07236636]
[1771164406438,4e-05,69098.0,69094.0,0.07236494]
[1771164406656,8e-05,69110.0,69086.0,0.00094995]
[1771164406859,8e-05,69110.0,69092.0,4e-05]
[1771164407107,0.07239315,69106.0,69092.0,4e-05]
[1771164407323,0.07235408,69105.0,69092.0,4e-05]
[1771164407644,0.0004,69102.0,69092.0,4e-05]
[1771164408264,0.07236204,69098.0,69092.0,4e-05]
[1771164408474,0.0004,69102.0,69092.0,4e-05]
[1771164408697,0.0004,69102.0,69092.0,0.0724066]
[1771164408879,0.0004,69102.0,69092.0,4e-05]
[1771164410007,0.07236144,69098.0,69092.0,4e-05]
[1771164411336,0.07235867,69101.0,69092.0,4e-05]
[1771164411539,0.0004,69102.0,69092.0,4e-05]
[1771164411540,0.07236026,69099.0,69092.0,4e-05]
[1771164411745,0.07236026,69099.0,69092.0,0.0001545]
[1771164411915,0.07235825,69101.0,69092.0,0.0001545]
[1771164412124,0.07235901,69100.0,69092.0,0.0001545]
[1771164412315,0.0723608,69099.0,69092.0,0.0001545]
[1771164412921,0.07235901,69100.0,69092.0,0.0001545]
[1771164413083,0.001,69101.0,69092.0,0.0001545]
[1771164413288,4e-05,69100.0,69096.0,4e-05]
[1771164417870,4e-05,69098.0,69087.0,0.06144489]
[1771164418293,4e-05,69098.0,69088.0,0.07237141]
[1771164418491,4e-05,69098.0,69087.0,0.28948968]
[1771164418692,4e-05,69098.0,69090.0,0.07236932]
[1771164419502,4e-05,69098.0,69086.0,0.07304409]
[1771164420076,4e-05,69098.0,69087.0,0.0723725]
[1771164420276,4e-05,69098.0,69092.0,0.07236682]